[Event "Titled Tuesday Blitz May 25 2021"]
[White "Dong, Bao Nghia"]
[Black "Navalgund, Niranjan"]
[WhiteFideId "12400343"]
[BlackFideId "5030854"]
[WhiteElo "2409"]
[BlackElo "2290"]
[Result "1/2-1/2"]
[Round "09"]
[TimeControl "180+1"]
[Date "2021.05.25"]
[WhiteClock "0:00:26"]
[BlackClock "0:00:21"]

1. d4 {[%clk 0:02:59]}  Nf6 {[%clk 0:02:59]} 2. c4 {[%clk 0:02:58]}  Nc6 {[%clk 0:02:58]} 3. e3 {[%clk 0:02:57]}  e5 {[%clk 0:02:57]} 4. Nf3 {[%clk 0:02:57]}  Bb4+ {[%clk 0:02:55]} 5. Bd2 {[%clk 0:02:57]}  Bxd2+ {[%clk 0:02:55]} 6. Nbxd2 {[%clk 0:02:54]}  d6 {[%clk 0:02:56]} 7. Be2 {[%clk 0:02:54]}  O-O {[%clk 0:02:55]} 8. O-O {[%clk 0:02:54]}  Bg4 {[%clk 0:02:55]} 9. d5 {[%clk 0:02:54]}  Ne7 {[%clk 0:02:55]} 10. h3 {[%clk 0:02:53]}  Bd7 {[%clk 0:02:54]} 11. Rc1 {[%clk 0:02:51]}  Qc8 {[%clk 0:02:46]} 12. Re1 {[%clk 0:02:50]}  a5 {[%clk 0:02:38]} 13. Bf1 {[%clk 0:02:49]}  Ne8 {[%clk 0:02:37]} 14. a3 {[%clk 0:02:48]}  a4 {[%clk 0:02:36]} 15. e4 {[%clk 0:02:47]}  f5 {[%clk 0:02:31]} 16. c5 {[%clk 0:02:45]}  fxe4 {[%clk 0:02:28]} 17. Nxe4 {[%clk 0:02:44]}  Qd8 {[%clk 0:02:25]} 18. cxd6 {[%clk 0:02:43]}  cxd6 {[%clk 0:02:26]} 19. Nfg5 {[%clk 0:02:29]}  Rc8 {[%clk 0:02:11]} 20. Qd3 {[%clk 0:02:21]}  Bf5 {[%clk 0:02:01]} 21. Rxc8 {[%clk 0:02:15]}  Qxc8 {[%clk 0:02:02]} 22. Qd1 {[%clk 0:01:49]}  h6 {[%clk 0:02:00]} 23. Nf3 {[%clk 0:01:48]}  Qd7 {[%clk 0:01:55]} 24. Nc3 {[%clk 0:01:45]}  Nc7 {[%clk 0:01:52]} 25. Qxa4 {[%clk 0:01:44]}  Qxa4 {[%clk 0:01:47]} 26. Nxa4 {[%clk 0:01:43]}  Ncxd5 {[%clk 0:01:48]} 27. Bc4 {[%clk 0:01:42]}  Kh8 {[%clk 0:01:48]} 28. Rd1 {[%clk 0:01:37]}  Be6 {[%clk 0:01:37]} 29. Nb6 {[%clk 0:01:30]}  Nxb6 {[%clk 0:01:32]} 30. Bxe6 {[%clk 0:01:29]}  Rd8 {[%clk 0:01:29]} 31. Nxe5 {[%clk 0:01:26]}  Kh7 {[%clk 0:01:29]} 32. Nd3 {[%clk 0:01:20]}  d5 {[%clk 0:01:28]} 33. b4 {[%clk 0:01:18]}  Rd6 {[%clk 0:01:28]} 34. Bg4 {[%clk 0:01:17]}  d4 {[%clk 0:01:27]} 35. Bf3 {[%clk 0:01:16]}  Nc4 {[%clk 0:01:26]} 36. Bxb7 {[%clk 0:01:14]}  Nxa3 {[%clk 0:01:26]} 37. Be4+ {[%clk 0:01:13]}  Kg8 {[%clk 0:01:25]} 38. Nc5 {[%clk 0:01:13]}  Nb5 {[%clk 0:01:20]} 39. Bd3 {[%clk 0:01:13]}  Nc3 {[%clk 0:01:20]} 40. Ra1 {[%clk 0:01:13]}  Rb6 {[%clk 0:01:19]} 41. Bc4+ {[%clk 0:01:05]}  Kh7 {[%clk 0:01:17]} 42. Nd3 {[%clk 0:01:05]}  Nc6 {[%clk 0:01:10]} 43. Ra8 {[%clk 0:00:43]}  Kg6 {[%clk 0:01:00]} 44. Rc8 {[%clk 0:00:37]}  Nxb4 {[%clk 0:00:56]} 45. Ne5+ {[%clk 0:00:36]}  Kf5 {[%clk 0:00:51]} 46. Nf3 {[%clk 0:00:24]}  Rd6 {[%clk 0:00:44]} 47. Bf1 {[%clk 0:00:13]}  Ne4 {[%clk 0:00:36]} 48. Rc4 {[%clk 0:00:14]}  Nc6 {[%clk 0:00:32]} 49. Rxc6 {[%clk 0:00:14]}  Rxc6 {[%clk 0:00:30]} 50. Nxd4+ {[%clk 0:00:14]}  Kf4 {[%clk 0:00:29]} 51. Nxc6 {[%clk 0:00:15]}  g5 {[%clk 0:00:30]} 52. Nd4 {[%clk 0:00:15]}  h5 {[%clk 0:00:29]} 53. g3+ {[%clk 0:00:15]}  Ke5 {[%clk 0:00:29]} 54. Nf3+ {[%clk 0:00:16]}  Kf6 {[%clk 0:00:29]} 55. Bd3 {[%clk 0:00:16]}  Nc5 {[%clk 0:00:29]} 56. Bc2 {[%clk 0:00:16]}  Na6 {[%clk 0:00:29]} 57. Nd4 {[%clk 0:00:17]}  Nb4 {[%clk 0:00:29]} 58. Ne2 {[%clk 0:00:18]}  Nxc2 {[%clk 0:00:28]} 59. Kg2 {[%clk 0:00:19]}  Ne1+ {[%clk 0:00:28]} 60. Kf1 {[%clk 0:00:19]}  Nd3 {[%clk 0:00:27]} 61. Nd4 {[%clk 0:00:19]}  Ke5 {[%clk 0:00:23]} 62. Nf3+ {[%clk 0:00:19]}  Kf5 {[%clk 0:00:23]} 63. Ke2 {[%clk 0:00:20]}  Nc1+ {[%clk 0:00:23]} 64. Ke3 {[%clk 0:00:21]}  Na2 {[%clk 0:00:22]} 65. Nd4+ {[%clk 0:00:21]}  Ke5 {[%clk 0:00:22]} 66. f4+ {[%clk 0:00:22]}  gxf4+ {[%clk 0:00:22]} 67. gxf4+ {[%clk 0:00:23]}  Kf6 {[%clk 0:00:22]} 68. Nf3 {[%clk 0:00:24]}  Nc3 {[%clk 0:00:22]} 69. Kd4 {[%clk 0:00:24]}  Ne2+ {[%clk 0:00:22]} 70. Ke4 {[%clk 0:00:24]}  Ng3+ {[%clk 0:00:22]} 71. Ke3 {[%clk 0:00:25]}  Nf5+ {[%clk 0:00:22]} 72. Kd3 {[%clk 0:00:25]}  Ng3 {[%clk 0:00:23]} 73. Kd4 {[%clk 0:00:25]}  Nf5+ {[%clk 0:00:22]} 74. Kd5 {[%clk 0:00:25]}  Ng3 {[%clk 0:00:23]} 75. Nd4 {[%clk 0:00:26]}  Nh1 {[%clk 0:00:20]} 76. Ke4 {[%clk 0:00:23]}  Nf2+ {[%clk 0:00:20]} 77. Kf3 {[%clk 0:00:24]}  Nxh3 {[%clk 0:00:19]} 78. Kg3 {[%clk 0:00:24]}  Nxf4 {[%clk 0:00:19]} 79. Kxf4 {[%clk 0:00:24]}  h4 {[%clk 0:00:19]} 80. Nf3 {[%clk 0:00:25]}  h3 {[%clk 0:00:20]} 81. Kg3 {[%clk 0:00:25]}  h2 {[%clk 0:00:21]} 82. Kxh2 {[%clk 0:00:26]} 1/2-1/2


[Site "https://www.chess.com"]

[Event "Titled Tuesday Blitz May 25 2021"]
[White "Eynullayev, Atilla"]
[Black "Molina, Roberto Junio Brito"]
[WhiteFideId "13413570"]
[BlackFideId "2109450"]
[WhiteElo "2515"]
[BlackElo "2675"]
[Result "0-1"]
[Round "09"]
[TimeControl "180+1"]
[Date "2021.05.25"]
[WhiteClock "0:00:01"]
[BlackClock "0:00:37"]

1. e4 {[%clk 0:03:00]}  c6 {[%clk 0:02:52]} 2. d4 {[%clk 0:03:00]}  d5 {[%clk 0:02:52]} 3. e5 {[%clk 0:02:58]}  c5 {[%clk 0:02:49]} 4. dxc5 {[%clk 0:02:58]}  e6 {[%clk 0:02:48]} 5. Nf3 {[%clk 0:02:57]}  Nd7 {[%clk 0:02:47]} 6. a3 {[%clk 0:02:56]}  Bxc5 {[%clk 0:02:46]} 7. Bd3 {[%clk 0:02:54]}  Ne7 {[%clk 0:02:46]} 8. O-O {[%clk 0:02:51]}  Nc6 {[%clk 0:02:44]} 9. b4 {[%clk 0:02:42]}  Be7 {[%clk 0:02:42]} 10. Bb2 {[%clk 0:02:41]}  a5 {[%clk 0:02:42]} 11. b5 {[%clk 0:02:39]}  Ncb8 {[%clk 0:02:39]} 12. c4 {[%clk 0:02:38]}  dxc4 {[%clk 0:02:37]} 13. Bxc4 {[%clk 0:02:38]}  Nb6 {[%clk 0:02:38]} 14. Bd3 {[%clk 0:02:27]}  N8d7 {[%clk 0:02:36]} 15. Nbd2 {[%clk 0:01:45]}  Nc5 {[%clk 0:02:33]} 16. Bc2 {[%clk 0:01:45]}  a4 {[%clk 0:02:27]} 17. Qe2 {[%clk 0:01:44]}  Bd7 {[%clk 0:02:25]} 18. Rfd1 {[%clk 0:01:38]}  Ra5 {[%clk 0:02:24]} 19. Nd4 {[%clk 0:01:36]}  O-O {[%clk 0:02:19]} 20. Rac1 {[%clk 0:01:35]}  Qb8 {[%clk 0:02:17]} 21. Bc3 {[%clk 0:01:31]}  Ra8 {[%clk 0:02:16]} 22. N2f3 {[%clk 0:00:56]}  Rc8 {[%clk 0:02:14]} 23. Bb4 {[%clk 0:00:52]}  Rc7 {[%clk 0:02:05]} 24. h4 {[%clk 0:00:28]}  Nd5 {[%clk 0:02:03]} 25. Bxc5 {[%clk 0:00:27]}  Bxc5 {[%clk 0:02:02]} 26. Qe4 {[%clk 0:00:25]}  g6 {[%clk 0:01:58]} 27. Bb1 {[%clk 0:00:23]}  Bxa3 {[%clk 0:01:42]} 28. Rxc7 {[%clk 0:00:22]}  Qxc7 {[%clk 0:01:43]} 29. Ng5 {[%clk 0:00:13]}  Be7 {[%clk 0:01:35]} 30. Nxh7 {[%clk 0:00:02]}  Kxh7 {[%clk 0:01:34]} 31. h5 {[%clk 0:00:03]}  Kg7 {[%clk 0:01:34]} 32. hxg6 {[%clk 0:00:03]}  Rh8 {[%clk 0:01:07]} 33. gxf7 {[%clk 0:00:03]}  Rh6 {[%clk 0:01:08]} 34. Qg4+ {[%clk 0:00:03]}  Kxf7 {[%clk 0:01:06]} 35. g3 {[%clk 0:00:01]}  Qd8 {[%clk 0:00:41]} 36. Be4 {[%clk 0:00:01]}  Qg8 {[%clk 0:00:37]} 37. Qf3+ {[%clk 0:00:01]}  Ke8 {[%clk 0:00:37]} 0-1


[Site "https://www.chess.com"]

[Event "Titled Tuesday Blitz May 25 2021"]
[White "Garcia, Gabriel Gonzaga"]
[Black "Garcia Ramos, Daniel"]
[WhiteFideId "2138956"]
[BlackFideId "32010311"]
[WhiteElo "2240"]
[BlackElo "2334"]
[Result "0-1"]
[Round "09"]
[TimeControl "180+1"]
[Date "2021.05.25"]
[WhiteClock "0:00:02"]
[BlackClock "0:00:54"]

1. e4 {[%clk 0:02:59]}  e6 {[%clk 0:03:00]} 2. Nf3 {[%clk 0:02:59]}  d5 {[%clk 0:03:01]} 3. Nc3 {[%clk 0:03:00]}  dxe4 {[%clk 0:02:58]} 4. Nxe4 {[%clk 0:03:01]}  Be7 {[%clk 0:02:59]} 5. d4 {[%clk 0:02:59]}  Nf6 {[%clk 0:03:00]} 6. Bd3 {[%clk 0:02:59]}  O-O {[%clk 0:03:00]} 7. Bf4 {[%clk 0:02:54]}  Nbd7 {[%clk 0:03:00]} 8. Nxf6+ {[%clk 0:02:52]}  Nxf6 {[%clk 0:02:59]} 9. O-O {[%clk 0:02:49]}  c5 {[%clk 0:02:58]} 10. dxc5 {[%clk 0:02:49]}  Bxc5 {[%clk 0:02:59]} 11. Ne5 {[%clk 0:02:43]}  Qd4 {[%clk 0:02:43]} 12. Qf3 {[%clk 0:02:29]}  Nd5 {[%clk 0:02:36]} 13. Bg3 {[%clk 0:02:23]}  Qxb2 {[%clk 0:02:31]} 14. Rab1 {[%clk 0:02:06]}  Qc3 {[%clk 0:02:21]} 15. Rb3 {[%clk 0:01:52]}  Qd2 {[%clk 0:02:21]} 16. Qh5 {[%clk 0:01:39]}  Nf6 {[%clk 0:02:18]} 17. Qh4 {[%clk 0:01:37]}  Qh6 {[%clk 0:02:10]} 18. Qxh6 {[%clk 0:01:36]}  gxh6 {[%clk 0:02:10]} 19. Bh4 {[%clk 0:01:29]}  Nd5 {[%clk 0:02:03]} 20. c4 {[%clk 0:01:26]}  Nf4 {[%clk 0:02:02]} 21. Be4 {[%clk 0:01:26]}  Ng6 {[%clk 0:01:59]} 22. Bf6 {[%clk 0:00:54]}  Bd6 {[%clk 0:01:46]} 23. Ng4 {[%clk 0:00:50]}  Bf4 {[%clk 0:01:46]} 24. Rh3 {[%clk 0:00:28]}  e5 {[%clk 0:01:42]} 25. Nxh6+ {[%clk 0:00:26]}  Bxh6 {[%clk 0:01:41]} 26. Rxh6 {[%clk 0:00:27]}  Be6 {[%clk 0:01:38]} 27. Bxb7 {[%clk 0:00:18]}  Bxc4 {[%clk 0:01:33]} 28. Bxa8 {[%clk 0:00:16]}  Bxf1 {[%clk 0:01:32]} 29. Bd5 {[%clk 0:00:15]}  Bd3 {[%clk 0:01:27]} 30. g3 {[%clk 0:00:13]}  Rc8 {[%clk 0:01:25]} 31. h4 {[%clk 0:00:13]}  Rc5 {[%clk 0:01:21]} 32. Bb3 {[%clk 0:00:12]}  Bc2 {[%clk 0:01:15]} 33. h5 {[%clk 0:00:10]}  Nf8 {[%clk 0:01:11]} 34. Bxc2 {[%clk 0:00:09]}  Rxc2 {[%clk 0:01:12]} 35. Bxe5 {[%clk 0:00:10]}  Ne6 {[%clk 0:01:02]} 36. a3 {[%clk 0:00:09]}  Ra2 {[%clk 0:00:56]} 37. Rf6 {[%clk 0:00:05]}  Rxa3 {[%clk 0:00:54]} 38. Rf3 {[%clk 0:00:02]}  Rxf3 {[%clk 0:00:54]} 0-1


[Site "https://www.chess.com"]

[Event "Titled Tuesday Blitz May 25 2021"]
[White "Ghimpu, Samuel-Timotei"]
[Black "Sawlin, Leonid"]
[WhiteFideId "1238175"]
[BlackFideId "4689542"]
[WhiteElo "2026"]
[BlackElo "2412"]
[Result "0-1"]
[Round "09"]
[TimeControl "180+1"]
[Date "2021.05.25"]
[WhiteClock "0:00:04"]
[BlackClock "0:00:11"]

1. e4 {[%clk 0:02:53]}  e6 {[%clk 0:02:56]} 2. f4 {[%clk 0:02:48]}  d5 {[%clk 0:02:56]} 3. e5 {[%clk 0:02:49]}  c5 {[%clk 0:02:57]} 4. Nf3 {[%clk 0:02:49]}  Nc6 {[%clk 0:02:57]} 5. c3 {[%clk 0:02:49]}  Nge7 {[%clk 0:02:56]} 6. Na3 {[%clk 0:02:49]}  h6 {[%clk 0:02:52]} 7. d4 {[%clk 0:02:33]}  a6 {[%clk 0:02:09]} 8. Nc2 {[%clk 0:02:28]}  Nf5 {[%clk 0:02:06]} 9. Bd3 {[%clk 0:02:23]}  Qb6 {[%clk 0:02:04]} 10. Bxf5 {[%clk 0:02:08]}  exf5 {[%clk 0:02:04]} 11. O-O {[%clk 0:02:08]}  Be6 {[%clk 0:02:03]} 12. Qe2 {[%clk 0:01:54]}  Be7 {[%clk 0:02:02]} 13. Kh1 {[%clk 0:01:45]}  c4 {[%clk 0:02:02]} 14. Ne3 {[%clk 0:01:37]}  Qd8 {[%clk 0:02:01]} 15. h3 {[%clk 0:01:30]}  g5 {[%clk 0:01:56]} 16. Nh2 {[%clk 0:01:24]}  Qd7 {[%clk 0:01:53]} 17. Qf2 {[%clk 0:01:12]}  gxf4 {[%clk 0:01:43]} 18. Qxf4 {[%clk 0:01:13]}  Bg5 {[%clk 0:01:43]} 19. Qf3 {[%clk 0:01:08]}  Ne7 {[%clk 0:01:43]} 20. g3 {[%clk 0:00:53]}  O-O-O {[%clk 0:01:39]} 21. b3 {[%clk 0:00:46]}  cxb3 {[%clk 0:01:39]} 22. axb3 {[%clk 0:00:47]}  Rdg8 {[%clk 0:01:35]} 23. Ng2 {[%clk 0:00:42]}  f4 {[%clk 0:00:50]} 24. gxf4 {[%clk 0:00:31]}  Bxh3 {[%clk 0:00:50]} 25. fxg5 {[%clk 0:00:31]}  hxg5 {[%clk 0:00:50]} 26. Kg1 {[%clk 0:00:25]}  g4 {[%clk 0:00:43]} 27. Qxf7 {[%clk 0:00:14]}  g3 {[%clk 0:00:40]} 28. Nf3 {[%clk 0:00:12]}  Bxg2 {[%clk 0:00:40]} 29. e6 {[%clk 0:00:13]}  Qc7 {[%clk 0:00:25]} 30. Bf4 {[%clk 0:00:12]}  Bxf3 {[%clk 0:00:09]} 31. Rxf3 {[%clk 0:00:08]}  g2 {[%clk 0:00:10]} 32. Bxc7 {[%clk 0:00:06]}  Rh1+ {[%clk 0:00:11]} 33. Kf2 {[%clk 0:00:06]}  Rxa1 {[%clk 0:00:11]} 34. Qxg8+ {[%clk 0:00:05]}  Nxg8 {[%clk 0:00:11]} 35. Rf8+ {[%clk 0:00:06]}  Kxc7 {[%clk 0:00:11]} 36. Rxg8 {[%clk 0:00:07]}  Kd6 {[%clk 0:00:10]} 37. Kxg2 {[%clk 0:00:04]}  Kxe6 {[%clk 0:00:10]} 38. Rb8 {[%clk 0:00:04]}  Rc1 {[%clk 0:00:10]} 39. Rxb7 {[%clk 0:00:03]}  Rxc3 {[%clk 0:00:11]} 40. Rb6+ {[%clk 0:00:04]}  Kf5 {[%clk 0:00:12]} 41. Rxa6 {[%clk 0:00:04]}  Ke4 {[%clk 0:00:12]} 42. Kf2 {[%clk 0:00:04]}  Kxd4 {[%clk 0:00:12]} 43. b4 {[%clk 0:00:04]}  Rb3 {[%clk 0:00:12]} 44. Rb6 {[%clk 0:00:04]}  Kc4 {[%clk 0:00:12]} 45. Ke2 {[%clk 0:00:03]}  Rb2+ {[%clk 0:00:12]} 46. Kd1 {[%clk 0:00:03]}  d4 {[%clk 0:00:12]} 47. b5 {[%clk 0:00:03]}  Kc3 {[%clk 0:00:11]} 48. Rc6+ {[%clk 0:00:02]}  Kd3 {[%clk 0:00:12]} 49. Kc1 {[%clk 0:00:02]}  Rxb5 {[%clk 0:00:12]} 50. Rh6 {[%clk 0:00:03]}  Re5 {[%clk 0:00:11]} 51. Rh3+ {[%clk 0:00:02]}  Re3 {[%clk 0:00:11]} 52. Rh2 {[%clk 0:00:03]}  Re1+ {[%clk 0:00:10]} 53. Kb2 {[%clk 0:00:04]}  Re2+ {[%clk 0:00:11]} 0-1


[Site "https://www.chess.com"]

[Event "Titled Tuesday Blitz May 25 2021"]
[White "Guimaraes, Diogo Duarte"]
[Black "Fayzullaev, Akmal"]
[WhiteFideId "2112450"]
[BlackFideId "14200554"]
[WhiteElo "2263"]
[BlackElo "2264"]
[Result "0-1"]
[Round "09"]
[TimeControl "180+1"]
[Date "2021.05.25"]
[WhiteClock "0:00:14"]
[BlackClock "0:01:38"]

1. e4 {[%clk 0:03:00]}  c5 {[%clk 0:03:00]} 2. Nf3 {[%clk 0:03:00]}  Nc6 {[%clk 0:02:57]} 3. Bb5 {[%clk 0:02:59]}  Nf6 {[%clk 0:02:56]} 4. e5 {[%clk 0:02:57]}  Ng4 {[%clk 0:02:56]} 5. Qe2 {[%clk 0:02:44]}  g6 {[%clk 0:02:54]} 6. h3 {[%clk 0:02:42]}  Nh6 {[%clk 0:02:53]} 7. d3 {[%clk 0:02:24]}  Nf5 {[%clk 0:02:48]} 8. Bxc6 {[%clk 0:02:23]}  dxc6 {[%clk 0:02:46]} 9. Nc3 {[%clk 0:02:16]}  Bg7 {[%clk 0:02:45]} 10. Be3 {[%clk 0:02:15]}  b6 {[%clk 0:02:39]} 11. g4 {[%clk 0:02:06]}  Nd4 {[%clk 0:02:33]} 12. Bxd4 {[%clk 0:02:06]}  cxd4 {[%clk 0:02:33]} 13. Ne4 {[%clk 0:02:06]}  Qd5 {[%clk 0:02:28]} 14. Nf6+ {[%clk 0:01:56]}  Bxf6 {[%clk 0:02:12]} 15. exf6 {[%clk 0:01:56]}  Be6 {[%clk 0:02:11]} 16. fxe7 {[%clk 0:01:53]}  Kxe7 {[%clk 0:02:09]} 17. Rg1 {[%clk 0:01:32]}  Rhe8 {[%clk 0:02:03]} 18. h4 {[%clk 0:01:21]}  h5 {[%clk 0:02:01]} 19. gxh5 {[%clk 0:01:20]}  gxh5 {[%clk 0:01:53]} 20. Qe4 {[%clk 0:01:12]}  Qxe4+ {[%clk 0:01:44]} 21. dxe4 {[%clk 0:01:03]}  c5 {[%clk 0:01:44]} 22. Ng5 {[%clk 0:00:14]}  Bc4 {[%clk 0:01:38]} 0-1


[Site "https://www.chess.com"]

[Event "Titled Tuesday Blitz May 25 2021"]
[White "Jarovinsky, Alexey"]
[Black "Vogel, Roven"]
[WhiteFideId "14115131"]
[BlackFideId "12908088"]
[WhiteElo "2446"]
[BlackElo "2516"]
[Result "1-0"]
[Round "09"]
[TimeControl "180+1"]
[Date "2021.05.25"]
[WhiteClock "0:00:09"]
[BlackClock "0:00:08"]

1. Nc3 {[%clk 0:03:00]}  d5 {[%clk 0:02:49]} 2. e4 {[%clk 0:03:00]}  d4 {[%clk 0:02:48]} 3. Nce2 {[%clk 0:02:59]}  e5 {[%clk 0:02:46]} 4. Ng3 {[%clk 0:02:59]}  Be6 {[%clk 0:02:41]} 5. c3 {[%clk 0:02:58]}  Bc5 {[%clk 0:02:36]} 6. Nf3 {[%clk 0:02:49]}  f6 {[%clk 0:02:23]} 7. cxd4 {[%clk 0:02:43]}  Bxd4 {[%clk 0:02:20]} 8. Nxd4 {[%clk 0:02:39]}  Qxd4 {[%clk 0:02:19]} 9. Bb5+ {[%clk 0:02:26]}  c6 {[%clk 0:02:18]} 10. Be2 {[%clk 0:02:25]}  Ne7 {[%clk 0:02:17]} 11. O-O {[%clk 0:02:19]}  O-O {[%clk 0:02:16]} 12. d3 {[%clk 0:02:18]}  c5 {[%clk 0:02:15]} 13. Qc2 {[%clk 0:02:16]}  b6 {[%clk 0:02:05]} 14. Be3 {[%clk 0:02:14]}  Qd6 {[%clk 0:02:05]} 15. f4 {[%clk 0:01:51]}  Nbc6 {[%clk 0:02:05]} 16. f5 {[%clk 0:01:40]}  Bf7 {[%clk 0:02:04]} 17. Bh5 {[%clk 0:01:41]}  Nb4 {[%clk 0:01:59]} 18. Bxf7+ {[%clk 0:01:40]}  Rxf7 {[%clk 0:02:00]} 19. Qa4 {[%clk 0:01:36]}  Qxd3 {[%clk 0:01:59]} 20. Bf2 {[%clk 0:01:34]}  Qa6 {[%clk 0:01:49]} 21. Qb3 {[%clk 0:01:32]}  Qd3 {[%clk 0:01:47]} 22. Qe6 {[%clk 0:01:26]}  Rd8 {[%clk 0:01:30]} 23. Rfd1 {[%clk 0:01:08]}  Qxd1+ {[%clk 0:01:29]} 24. Rxd1 {[%clk 0:01:09]}  Rxd1+ {[%clk 0:01:29]} 25. Nf1 {[%clk 0:01:09]}  Nbc6 {[%clk 0:01:25]} 26. g4 {[%clk 0:01:04]}  Kf8 {[%clk 0:01:18]} 27. Kg2 {[%clk 0:01:03]}  Ke8 {[%clk 0:01:15]} 28. Ne3 {[%clk 0:01:01]}  Rd8 {[%clk 0:00:55]} 29. Nc4 {[%clk 0:00:59]}  Rf8 {[%clk 0:00:46]} 30. Nd6+ {[%clk 0:00:56]}  Rxd6 {[%clk 0:00:46]} 31. Qxd6 {[%clk 0:00:57]}  Kf7 {[%clk 0:00:47]} 32. Qe6+ {[%clk 0:00:57]}  Ke8 {[%clk 0:00:47]} 33. a3 {[%clk 0:00:52]}  Kd8 {[%clk 0:00:47]} 34. b4 {[%clk 0:00:47]}  cxb4 {[%clk 0:00:42]} 35. axb4 {[%clk 0:00:46]}  b5 {[%clk 0:00:40]} 36. Bc5 {[%clk 0:00:42]}  Re8 {[%clk 0:00:39]} 37. Bxa7 {[%clk 0:00:31]}  Nxa7 {[%clk 0:00:33]} 38. Qb6+ {[%clk 0:00:31]}  Kc8 {[%clk 0:00:34]} 39. Qxa7 {[%clk 0:00:31]}  Nc6 {[%clk 0:00:32]} 40. Qxg7 {[%clk 0:00:29]}  Rd8 {[%clk 0:00:28]} 41. Qxf6 {[%clk 0:00:27]}  Rd2+ {[%clk 0:00:28]} 42. Kh3 {[%clk 0:00:26]}  Nd4 {[%clk 0:00:29]} 43. Qh8+ {[%clk 0:00:17]}  Kd7 {[%clk 0:00:26]} 44. Qxh7+ {[%clk 0:00:18]}  Kc8 {[%clk 0:00:26]} 45. Qh8+ {[%clk 0:00:18]}  Kb7 {[%clk 0:00:26]} 46. Qg7+ {[%clk 0:00:17]}  Kc8 {[%clk 0:00:25]} 47. g5 {[%clk 0:00:17]}  Rd3+ {[%clk 0:00:21]} 48. Kg4 {[%clk 0:00:16]}  Nc2 {[%clk 0:00:19]} 49. Qxe5 {[%clk 0:00:14]}  Ne3+ {[%clk 0:00:19]} 50. Kh5 {[%clk 0:00:14]}  Nc4 {[%clk 0:00:14]} 51. Qe6+ {[%clk 0:00:13]}  Kc7 {[%clk 0:00:14]} 52. f6 {[%clk 0:00:12]}  Nd6 {[%clk 0:00:14]} 53. f7 {[%clk 0:00:11]}  Rf3 {[%clk 0:00:14]} 54. Qe7+ {[%clk 0:00:10]}  Kc6 {[%clk 0:00:10]} 55. f8=Q {[%clk 0:00:11]}  Rh3+ {[%clk 0:00:07]} 56. Kg6 {[%clk 0:00:10]}  Nb7 {[%clk 0:00:08]} 57. Qe6+ {[%clk 0:00:09]} 1-0


[Site "https://www.chess.com"]

[Event "Titled Tuesday Blitz May 25 2021"]
[White "Kamsky, Gata"]
[Black "Rostovtsev, Dmitry"]
[WhiteFideId "2000024"]
[BlackFideId "34278320"]
[WhiteElo "2644"]
[BlackElo "2143"]
[Result "1-0"]
[Round "09"]
[TimeControl "180+1"]
[Date "2021.05.25"]
[WhiteClock "0:00:20"]
[BlackClock "0:00:04"]

1. e4 {[%clk 0:03:00]}  e5 {[%clk 0:02:58]} 2. Nf3 {[%clk 0:03:00]}  Nc6 {[%clk 0:02:58]} 3. Bb5 {[%clk 0:02:59]}  a6 {[%clk 0:02:58]} 4. Ba4 {[%clk 0:02:58]}  Nf6 {[%clk 0:02:57]} 5. O-O {[%clk 0:02:58]}  Bc5 {[%clk 0:02:56]} 6. c3 {[%clk 0:02:57]}  O-O {[%clk 0:02:56]} 7. d4 {[%clk 0:02:56]}  Ba7 {[%clk 0:02:56]} 8. Bg5 {[%clk 0:02:50]}  h6 {[%clk 0:02:55]} 9. Bh4 {[%clk 0:02:48]}  exd4 {[%clk 0:02:56]} 10. e5 {[%clk 0:02:47]}  g5 {[%clk 0:02:56]} 11. Bg3 {[%clk 0:02:44]}  Ne4 {[%clk 0:01:42]} 12. Nxd4 {[%clk 0:02:27]}  Nxg3 {[%clk 0:01:39]} 13. hxg3 {[%clk 0:02:26]}  Nxe5 {[%clk 0:01:31]} 14. f4 {[%clk 0:02:17]}  Nc6 {[%clk 0:01:19]} 15. Kh2 {[%clk 0:01:59]}  Nxd4 {[%clk 0:00:48]} 16. cxd4 {[%clk 0:01:58]}  Qf6 {[%clk 0:00:49]} 17. Nc3 {[%clk 0:01:55]}  d5 {[%clk 0:00:34]} 18. Nxd5 {[%clk 0:01:37]}  Qxd4 {[%clk 0:00:33]} 19. Nxc7 {[%clk 0:01:06]}  Qxd1 {[%clk 0:00:30]} 20. Raxd1 {[%clk 0:01:04]}  Rb8 {[%clk 0:00:31]} 21. Nd5 {[%clk 0:01:04]}  Kg7 {[%clk 0:00:26]} 22. f5 {[%clk 0:00:50]}  b5 {[%clk 0:00:25]} 23. Bb3 {[%clk 0:00:47]}  h5 {[%clk 0:00:20]} 24. f6+ {[%clk 0:00:45]}  Kh6 {[%clk 0:00:20]} 25. Ne7 {[%clk 0:00:43]}  Be6 {[%clk 0:00:15]} 26. Bxe6 {[%clk 0:00:34]}  fxe6 {[%clk 0:00:16]} 27. Nc6 {[%clk 0:00:32]}  Rb7 {[%clk 0:00:15]} 28. Rd6 {[%clk 0:00:30]}  Rb6 {[%clk 0:00:10]} 29. Rxe6 {[%clk 0:00:29]}  Bb8 {[%clk 0:00:10]} 30. f7+ {[%clk 0:00:26]}  Kg7 {[%clk 0:00:10]} 31. Nd4 {[%clk 0:00:26]}  Rb7 {[%clk 0:00:07]} 32. Re8 {[%clk 0:00:20]}  Rfxf7 {[%clk 0:00:03]} 33. Ne6+ {[%clk 0:00:20]}  Kg6 {[%clk 0:00:01]} 34. Rg8+ {[%clk 0:00:20]}  Kh7 {[%clk 0:00:01]} 35. Rxf7+ {[%clk 0:00:21]}  Rxf7 {[%clk 0:00:02]} 36. Rxb8 {[%clk 0:00:21]}  Kg6 {[%clk 0:00:03]} 37. Rb6 {[%clk 0:00:20]}  Kf6 {[%clk 0:00:04]} 38. Nd8+ {[%clk 0:00:20]} 1-0


[Site "https://www.chess.com"]